bitfinex-derivatives/quotes_BTCF0:USTF0_20210708
["timestamp","ask_amount","ask_price","bid_price","bid_amount"]
[1625770925952,4.30824765,32837.0,32834.0,0.0046]
[1625770926102,4.30821265,32835.0,32831.0,0.53846515]
[1625770926253,0.72172632,32832.0,32831.0,0.53846515]
[1625770926403,5.02890683,32832.0,32830.0,0.54309267]
[1625770926551,5.02890683,32832.0,32831.0,0.00360261]
[1625770926702,2.33689658,32832.0,32831.0,0.00360261]
[1625770926853,5.02874186,32832.0,32831.0,0.00360261]
[1625770927003,8.69434186,32832.0,32831.0,0.00360261]
[1625770927902,7.0791716,32832.0,32831.0,0.00360261]
[1625770928055,8.15486536,32832.0,32831.0,0.00360261]
[1625770928213,8.15486536,32832.0,32830.0,0.00360247]
[1625770928353,0.24057544,32831.0,32828.0,0.17935298]
[1625770928531,1.07505686,32829.0,32826.0,0.53807618]
[1625770928655,4.11119942,32829.0,32826.0,0.53807618]
[1625770928805,3.76184286,32827.0,32826.0,0.17935873]
[1625770929107,3.76184286,32827.0,32825.0,0.53808513]
[1625770929254,1.96046838,32829.0,32826.0,0.00360275]
[1625770929481,3.75633451,32827.0,32826.0,0.00360275]
[1625770929781,3.75633451,32827.0,32825.0,0.00360279]
[1625770929929,3.75637976,32826.0,32825.0,0.00360279]
[1625770930078,3.75637976,32826.0,32823.0,0.5375527]
[1625770930229,3.75637976,32826.0,32825.0,0.00360292]
[1625770930529,3.75637976,32826.0,32823.0,0.00360295]
[1625770930683,8.43178329,32824.0,32823.0,0.00360295]
[1625770930830,8.43178329,32824.0,32822.0,0.00360303]
[1625770931131,5.3924166,32824.0,32823.0,0.0036031]
[1625770931435,7.00187896,32824.0,32823.0,0.0036031]
[1625770931584,7.00187896,32824.0,32822.0,0.0036031]
[1625770931887,3.03599675,32823.0,32822.0,0.0036031]
[1625770932184,3.03599675,32823.0,32821.0,0.00360318]
[1625770932334,0.48115088,32822.0,32821.0,0.00360318]
[1625770932485,0.83130088,32822.0,32819.0,0.54603298]
[1625770932635,0.83130088,32822.0,32821.0,0.00360315]
[1625770932939,0.83130088,32822.0,32820.0,0.00360321]
[1625770933253,0.83590088,32822.0,32810.0,1.41567839]
[1625770933393,0.71356939,32817.0,32815.0,0.53701686]
[1625770933686,1.07026491,32818.0,32814.0,0.71602248]
[1625770933687,1.78321128,32816.0,32814.0,0.53703891]
[1625770933988,1.78233942,32815.0,32812.0,0.53705061]
[1625770934142,2.05713942,32815.0,32812.0,0.53705061]
[1625770934287,2.05713942,32815.0,32811.0,0.1790148]
[1625770934288,6.31347282,32813.0,32811.0,0.1790148]
[1625770934589,0.71257042,32812.0,32810.0,0.53706068]
[1625770934741,0.53383642,32812.0,32808.0,0.53628103]
[1625770934891,0.53383642,32812.0,32809.0,0.00901135]
[1625770935070,0.17797942,32811.0,32809.0,0.00360469]
[1625770935342,0.53371173,32811.0,32809.0,0.00360469]
[1625770935640,0.53371173,32811.0,32808.0,0.00360469]
[1625770935943,0.53371173,32811.0,32810.0,0.00360469]
[1625770936091,0.53371173,32811.0,32809.0,0.00360476]
[1625770936241,0.35573231,32811.0,32809.0,0.00360476]
[1625770936391,0.24057544,32810.0,32808.0,0.0036048]
[1625770936542,0.41848292,32810.0,32808.0,0.0036048]
[1625770936693,0.41848292,32810.0,32807.0,0.17875164]
[1625770936694,0.24057544,32810.0,32807.0,0.0036048]
[1625770936842,0.24517544,32810.0,32807.0,0.0036048]
[1625770936992,0.24517544,32810.0,32809.0,0.0036048]
[1625770937143,0.24517544,32810.0,32808.0,0.00360485]
[1625770937517,0.24517544,32810.0,32806.0,0.00360481]
[1625770937674,5.3911,32807.0,32806.0,0.00360481]
[1625770937836,5.62728,32807.0,32805.0,0.17851706]
[1625770937969,5.62728,32807.0,32806.0,0.00360485]
[1625770938425,6.10843088,32807.0,32806.0,0.00360485]
[1625770939118,6.10843088,32807.0,32805.0,0.00360487]
[1625770939405,6.10843088,32807.0,32806.0,0.00360487]
[1625770939924,6.10843088,32807.0,32804.0,0.00360481]
[1625770940075,6.10843088,32807.0,32806.0,0.00360479]
[1625770940374,6.10843088,32807.0,32805.0,0.00360479]
[1625770941200,6.10843088,32807.0,32804.0,0.00360474]
[1625770941424,6.10843088,32807.0,32806.0,0.00360477]
[1625770941724,6.10843088,32807.0,32804.0,0.00360477]
[1625770941951,6.10843088,32807.0,32806.0,0.00360477]
[1625770942250,6.10843088,32807.0,32804.0,0.00360471]
[1625770942401,0.24057544,32806.0,32804.0,0.00360471]
[1625770943003,0.24057544,32806.0,32803.0,0.00360467]
[1625770944503,0.57780544,32806.0,32803.0,0.00360467]
[1625770944957,0.57780544,32806.0,32802.0,0.00360461]
[1625770945255,0.57780544,32806.0,32804.0,0.00360461]
[1625770945405,0.57780544,32806.0,32803.0,0.00360464]
[1625770945704,0.57780544,32806.0,32802.0,0.00360457]
[1625770946461,0.24057544,32803.0,32802.0,0.00360457]
[1625770946987,5.35527544,32803.0,32802.0,0.00360457]
[1625770947150,5.35527544,32803.0,32800.0,0.00360474]
[1625770947288,5.35527544,32803.0,32802.0,0.00360474]
[1625770947661,5.35527544,32803.0,32801.0,0.00360474]
[1625770947812,5.35527544,32803.0,32802.0,0.00360476]
[1625770948111,5.35527544,32803.0,32799.0,0.63113239]
[1625770948112,5.35527544,32803.0,32800.0,0.00360483]
[1625770948412,5.35527544,32803.0,32802.0,0.00360483]
[1625770948711,5.35527544,32803.0,32801.0,0.00360483]
[1625770948861,5.35527544,32803.0,32802.0,0.00360483]
[1625770949015,5.35527544,32803.0,32798.0,0.86266233]
[1625770949162,5.35527544,32803.0,32802.0,0.0036048]
[1625770949462,5.35527544,32803.0,32802.0,0.00720951]
[1625770949764,5.35527544,32803.0,32802.0,0.0036048]
[1625770949914,5.35527544,32803.0,32802.0,0.00720958]
[1625770952768,5.35527544,32803.0,32802.0,0.0036048]
[1625770952917,5.35527544,32803.0,32802.0,0.00720961]
[1625770953218,5.35527544,32803.0,32802.0,0.0036048]
[1625770953368,5.35527544,32803.0,32802.0,0.00720959]
[1625770954524,5.64780544,32803.0,32802.0,0.00720959]
[1625770956144,5.64780544,32803.0,32802.0,0.00360479]
[1625770956594,5.64780544,32803.0,32800.0,0.01261681]
[1625770956895,5.64780544,32803.0,32802.0,0.003605]
[1625770957198,5.64780544,32803.0,32801.0,0.00360498]
[1625770957348,5.64780544,32803.0,32802.0,0.00360498]
[1625770957651,5.64780544,32803.0,32799.0,0.00360501]
[1625770958403,0.24057544,32800.0,32799.0,0.00360501]
[1625770960884,0.24057544,32800.0,32799.0,4.02590501]
[1625770961184,0.24057544,32800.0,32799.0,4.03491784]
[1625770962687,0.24057544,32800.0,32799.0,0.01261784]
[1625770962986,0.24057544,32800.0,32799.0,0.00360501]
[1625770964037,0.56462544,32800.0,32799.0,0.00360501]
[1625770969819,5.78042544,32800.0,32799.0,0.00360501]
[1625770973272,5.78042544,32800.0,32799.0,0.09265663]
[1625770974320,5.78042544,32800.0,32799.0,0.00360501]
[1625770974470,6.02100088,32800.0,32799.0,0.00360501]
[1625770974770,6.02100088,32800.0,32799.0,0.09266399]
[1625770975075,6.02100088,32800.0,32799.0,0.62732898]
[1625770976272,6.02100088,32800.0,32799.0,0.53827]
[1625770976499,6.02100088,32800.0,32799.0,0.36004834]
[1625770976800,6.02100088,32800.0,32799.0,0.00360501]
[1625770976949,6.02100088,32800.0,32799.0,0.7170718]
[1625770977249,6.02100088,32800.0,32799.0,0.00360501]
[1625770977702,6.02100088,32800.0,32799.0,0.71707094]
[1625770978452,6.02100088,32800.0,32799.0,0.00360501]
[1625770978677,6.02100088,32800.0,32799.0,0.71713827]
[1625770978978,6.02100088,32800.0,32799.0,1.78835377]
[1625770979803,6.02100088,32800.0,32799.0,0.71713827]
[1625770981454,6.02100088,32800.0,32799.0,1.78846977]
[1625770982056,6.02100088,32800.0,32799.0,1.79748265]
[1625770983559,6.02100088,32800.0,32799.0,4.48471823]
[1625770987320,0.80520088,32800.0,32799.0,4.48471823]
[1625770987483,0.48115088,32800.0,32799.0,6.36098694]
[1625770987666,0.08936122,32802.0,32799.0,6.36098694]
[1625770987803,0.24057544,32803.0,32799.0,6.36098694]
[1625770988070,0.24057544,32803.0,32802.0,6.10541162]
[1625770988383,0.24057544,32803.0,32802.0,6.10901589]
[1625770988518,0.24057544,32803.0,32802.0,6.358602]
[1625770989344,0.24057544,32803.0,32802.0,10.747902]
[1625770991521,0.24057544,32803.0,32802.0,12.5467028]
[1625770995500,0.24057544,32803.0,32802.0,8.1574028]
[1625770995722,0.49417544,32803.0,32802.0,8.1574028]
[1625770995834,0.49417544,32803.0,32802.0,6.358602]
[1625770995995,0.49417544,32803.0,32802.0,6.11802656]
[1625770996102,4.34307544,32803.0,32802.0,6.11802656]
[1625770996402,6.12881602,32803.0,32802.0,4.50188819]
[1625770996568,7.61891933,32803.0,32802.0,3.06532075]
[1625770996852,9.04642501,32803.0,32802.0,3.06532075]
[1625770997157,9.04642501,32803.0,32802.0,0.73089866]
[1625770997302,10.64995228,32803.0,32802.0,0.64197786]
[1625770997453,10.64995228,32803.0,32802.0,0.63296719]
[1625770997603,10.64995228,32803.0,32802.0,0.00360427]
[1625771001358,10.64995228,32803.0,32801.0,0.00360559]
[1625771001509,10.64995228,32803.0,32802.0,0.00360552]
[1625771001809,10.64995228,32803.0,32801.0,0.00360559]
[1625771002108,10.64995228,32803.0,32802.0,0.00360563]
[1625771002259,6.18717815,32803.0,32802.0,0.00360563]
[1625771002409,10.63570685,32803.0,32802.0,0.00360563]
[1625771002559,10.63570685,32803.0,32801.0,0.00360561]
[1625771003086,4.44870649,32802.0,32801.0,0.09344117]
[1625771003914,4.44870649,32802.0,32801.0,0.00360561]
[1625771004588,4.68928193,32802.0,32801.0,0.00360561]
[1625771005191,6.28874726,32802.0,32801.0,0.00360561]
[1625771005490,6.28874726,32802.0,32798.0,0.00360584]
[1625771005643,4.44217282,32799.0,32798.0,0.00360584]
[1625771006392,4.44217282,32799.0,32798.0,0.09338936]
[1625771006691,4.68274826,32799.0,32798.0,0.09338936]
[1625771006842,4.68274826,32799.0,32798.0,0.00360584]
[1625771014501,5.21867194,32799.0,32798.0,0.00360584]
[1625771016456,3.79722638,32799.0,32798.0,0.00360584]
[1625771016756,5.2278579,32799.0,32798.0,0.00360584]
[1625771016905,3.79722638,32799.0,32798.0,0.00360584]
[1625771017209,0.77649912,32799.0,32798.0,0.00360584]
[1625771017358,5.24805041,32799.0,32798.0,0.00360584]
[1625771019461,3.81720407,32799.0,32798.0,0.00360584]
[1625771019761,2.56519117,32799.0,32798.0,0.27250303]
[1625771019911,3.8198994,32799.0,32798.0,4.51170584]
[1625771020361,3.8198994,32799.0,32798.0,4.52072048]
[1625771020661,5.25338502,32799.0,32798.0,4.52072048]
[1625771021413,3.8198994,32799.0,32798.0,4.52072048]
[1625771026597,3.8198994,32799.0,32798.0,0.01262048]
[1625771027051,3.8198994,32799.0,32798.0,0.00360584]
[1625771030370,4.0449494,32799.0,32798.0,0.00360584]
[1625771030698,5.47905817,32799.0,32798.0,0.00360584]
[1625771036568,7.09247338,32799.0,32798.0,0.00360584]
[1625771051978,7.09707338,32799.0,32798.0,0.00360584]
[1625771053032,7.09247338,32799.0,32798.0,0.00360584]
[1625771054158,8.88814484,32799.0,32798.0,0.00360584]
[1625771054912,8.88814484,32799.0,32797.0,0.84530584]
[1625771055059,6.64445325,32798.0,32797.0,0.84530584]
[1625771055360,8.44289359,32798.0,32797.0,0.84530584]
[1625771055509,8.44289359,32798.0,32797.0,0.84891234]
[1625771056859,8.68346903,32798.0,32797.0,0.84891234]
[1625771070913,6.88502869,32798.0,32797.0,0.84891234]
[1625771077516,11.17352869,32798.0,32797.0,0.84891234]
[1625771083675,11.48026869,32798.0,32797.0,0.84891234]
[1625771085781,13.27951472,32798.0,32797.0,0.84891234]
[1625771095106,13.58631534,32798.0,32797.0,0.0036065]
[1625771095398,0.0036065,32795.0,32792.0,0.00360654]
[1625771095547,13.49561534,32798.0,32792.0,0.00360654]
[1625771095697,13.49561534,32798.0,32791.0,0.00360654]
[1625771095847,8.46560906,32793.0,32791.0,0.00360654]
[1625771095996,8.46560906,32793.0,32789.0,0.6262424]
[1625771096147,8.46419181,32792.0,32789.0,0.6262424]
[1625771096297,6.66450463,32790.0,32789.0,0.6262424]
[1625771096446,6.98579463,32790.0,32789.0,0.6262424]
[1625771096598,6.98579463,32790.0,32789.0,0.89460691]
[1625771096747,6.98579463,32790.0,32789.0,0.54036741]
[1625771096973,6.98579463,32790.0,32789.0,0.54938374]
[1625771097124,7.70752095,32790.0,32789.0,0.54938374]
[1625771097573,7.70752095,32790.0,32789.0,2.33788889]
[1625771097723,7.38623095,32790.0,32789.0,2.33788889]
[1625771097950,7.38623095,32790.0,32789.0,3.58958331]
[1625771097951,5.76521797,32790.0,32789.0,3.58958331]
[1625771099673,5.76521797,32790.0,32789.0,5.01950474]
[1625771099973,5.76521797,32790.0,32789.0,3.58958331]
[1625771100347,5.76521797,32790.0,32789.0,5.01939414]
[1625771101023,5.76521797,32790.0,32789.0,5.25996958]
[1625771101521,0.76161797,32790.0,32789.0,5.48525958]
[1625771101937,0.72172632,32790.0,32789.0,7.09148782]
[1625771102077,0.0046,32797.0,32789.0,7.38438782]
[1625771102227,1.86114019,32798.0,32789.0,7.38438782]
[1625771102378,0.25207054,32790.0,32789.0,0.77138829]
[1625771102528,0.24057544,32798.0,32789.0,0.75876544]
[1625771102678,0.24057544,32798.0,32797.0,3.7488]
[1625771102828,0.24057544,32798.0,32797.0,4.08652]
[1625771102978,0.24057544,32798.0,32797.0,4.09914036]
[1625771103131,0.24057544,32798.0,32797.0,4.58029124]
[1625771106359,1.62056245,32799.0,32797.0,4.58029124]
[1625771106810,1.62056245,32799.0,32798.0,0.01262044]
[1625771109141,1.619371,32800.0,32798.0,0.01262044]
[1625771110713,1.61928357,32801.0,32798.0,0.01262044]
[1625771111015,1.61928357,32801.0,32799.0,0.00360598]
[1625771111314,1.61928357,32801.0,32800.0,0.00360596]
[1625771111614,1.61928357,32801.0,32800.0,0.0072119]
[1625771112141,1.61928357,32801.0,32800.0,3.9705119]
[1625771112590,1.61928357,32801.0,32800.0,3.97952673]
[1625771114093,1.61928357,32801.0,32800.0,4.15800763]
[1625771114393,5.48438357,32801.0,32800.0,4.15800763]
[1625771115069,5.48438357,32801.0,32800.0,4.24725624]
[1625771115219,5.72495901,32801.0,32800.0,4.24725624]
[1625771115368,5.72495901,32801.0,32800.0,4.06877534]
[1625771115519,5.72495901,32801.0,32800.0,3.97952673]
[1625771116500,7.16372475,32801.0,32800.0,3.97952673]
[1625771117550,7.16372475,32801.0,32800.0,3.96690596]
[1625771117699,7.16372475,32801.0,32800.0,3.97952776]
[1625771121757,8.42265732,32801.0,32800.0,3.97952776]
[1625771122882,8.42265732,32801.0,32800.0,4.30926776]
[1625771124460,4.55755732,32801.0,32800.0,4.30926776]
[1625771124759,4.55755732,32801.0,32800.0,4.39484078]
[1625771124909,4.55755732,32801.0,32800.0,4.57321224]
[1625771125209,4.55755732,32801.0,32800.0,4.3056618]
[1625771125510,4.55755732,32801.0,32800.0,3.9759218]
[1625771128817,4.55755732,32801.0,32800.0,4.24371896]
[1625771129265,4.55755732,32801.0,32800.0,3.9759218]
[1625771129413,2.93827375,32801.0,32800.0,3.9759218]
[1625771130619,4.55706504,32801.0,32800.0,3.9759218]
[1625771130841,2.93827375,32801.0,32800.0,3.9759218]
[1625771131593,4.01747088,32801.0,32800.0,3.9759218]
[1625771132194,5.63612252,32801.0,32800.0,3.9759218]
[1625771132720,4.01747088,32801.0,32800.0,3.9759218]
[1625771133021,5.63612342,32801.0,32800.0,4.15438943]
[1625771136398,5.63612342,32801.0,32800.0,3.9759218]
[1625771138275,5.63612342,32801.0,32800.0,4.15497435]
[1625771142030,5.63612342,32801.0,32800.0,4.24450705]
[1625771142479,5.63612342,32801.0,32800.0,4.15497435]
[1625771146231,10.30192342,32801.0,32800.0,0.19167435]
[1625771146400,10.53394342,32801.0,32800.0,0.19167435]
[1625771146535,10.53394342,32801.0,32800.0,0.0126218]
[1625771146756,10.53394342,32801.0,32800.0,0.00360623]
[1625771147209,10.53394342,32801.0,32799.0,0.00360617]
[1625771147355,0.48115088,32800.0,32799.0,0.00360617]
[1625771147657,7.6756452,32800.0,32799.0,0.00360617]
[1625771148109,7.6756452,32800.0,32796.0,0.0036065]
[1625771148256,7.6756452,32800.0,32799.0,0.00360654]
[1625771148408,0.48115088,32800.0,32799.0,0.00360654]
[1625771148557,0.48115088,32800.0,32795.0,0.00360654]
[1625771148707,7.67414565,32800.0,32795.0,0.00360654]
[1625771149007,5.39502714,32796.0,32795.0,0.00360654]
[1625771149307,5.63560258,32796.0,32795.0,0.00360654]
[1625771149607,5.63560258,32796.0,32794.0,0.00360665]
[1625771149908,5.39339831,32795.0,32794.0,0.00360665]
[1625771150657,5.39339831,32795.0,32793.0,0.00360674]
[1625771150808,5.39352633,32794.0,32793.0,0.00360674]
[1625771150959,5.68745633,32794.0,32793.0,0.00360674]
[1625771151333,5.92803177,32794.0,32793.0,0.00360674]
[1625771151857,5.92803177,32794.0,32792.0,0.26976465]
[1625771152157,4.8356,32793.0,32792.0,0.26976465]
[1625771152310,10.22654301,32793.0,32792.0,0.26976465]
[1625771152683,10.22654301,32793.0,32792.0,0.27337143]
[1625771153284,10.46711845,32793.0,32792.0,0.27337143]
[1625771154259,10.46711845,32793.0,32792.0,0.00360678]
[1625771154559,8.84987148,32793.0,32791.0,1.08259145]
[1625771154866,5.07617544,32793.0,32792.0,0.00360667]
[1625771155159,8.85196894,32793.0,32792.0,0.00360667]
[1625771155987,8.85196894,32793.0,32792.0,1.08291827]
[1625771156435,8.85196894,32793.0,32792.0,0.00360667]
[1625771156886,10.46993622,32793.0,32792.0,0.00360667]
[1625771157336,8.85196894,32793.0,32792.0,0.00360667]
[1625771158389,8.85196894,32793.0,32792.0,1.08288256]
[1625771158840,8.85196894,32793.0,32792.0,1.09189892]
[1625771159366,8.85196894,32793.0,32792.0,1.33247436]
[1625771161621,9.56993487,32793.0,32792.0,2.05199154]
[1625771162971,9.56993487,32793.0,32792.0,0.97271565]
[1625771164327,9.56993487,32793.0,32792.0,2.05187392]
[1625771167105,9.56993487,32793.0,32792.0,2.04826725]
[1625771167253,9.56993487,32793.0,32792.0,2.051874]
[1625771168381,9.56993487,32793.0,32792.0,0.97271573]
[1625771169057,9.56993487,32793.0,32792.0,0.52297756]
[1625771169058,11.18649903,32793.0,32792.0,0.52297756]
[1625771169357,11.18649903,32793.0,32792.0,0.33410853]
[1625771169507,11.18649903,32793.0,32792.0,0.24418219]
[1625771169807,7.41070553,32793.0,32792.0,0.24418219]
[1625771169958,10.10582731,32793.0,32792.0,0.24418219]
[1625771170108,11.18391195,32793.0,32792.0,0.24418219]
[1625771170557,11.18391195,32793.0,32792.0,0.00360675]
[1625771171834,11.18391195,32793.0,32791.0,0.00360703]
[1625771171986,11.18391195,32793.0,32792.0,0.00360703]
[1625771172285,11.18391195,32793.0,32791.0,0.00360705]
[1625771172585,6.09794602,32792.0,32791.0,0.00360705]
[1625771174990,6.09794602,32792.0,32790.0,0.09349309]
[1625771175291,5.31675088,32793.0,32791.0,0.00360713]
[1625771175440,6.09625526,32792.0,32791.0,0.00360713]
[1625771175815,6.09625526,32792.0,32790.0,0.00360713]
[1625771175964,6.09625526,32792.0,32791.0,0.00360719]
[1625771176266,6.09625526,32792.0,32790.0,0.00360719]
[1625771176718,6.09521528,32791.0,32790.0,0.00360719]
[1625771180400,4.48183393,32791.0,32790.0,0.00360719]
[1625771180702,6.0944741,32791.0,32790.0,0.00360719]
[1625771181607,6.0944741,32791.0,32789.0,0.00360767]
[1625771181753,6.08918098,32790.0,32789.0,0.00360767]
[1625771181904,6.37579098,32790.0,32788.0,0.0898387]
[1625771182054,6.37579098,32790.0,32787.0,0.27854167]
[1625771182203,2.14831015,32788.0,32787.0,0.26952384]
[1625771182354,4.4756163,32788.0,32786.0,0.51913331]
[1625771182503,4.4756163,32788.0,32786.0,0.51011425]
[1625771182654,4.4756163,32788.0,32787.0,0.0036077]
[1625771182803,1.61114311,32789.0,32787.0,0.0036077]
[1625771183104,6.0824039,32788.0,32787.0,0.0036077]
[1625771183255,9.8400039,32788.0,32787.0,0.0036077]
[1625771183556,10.32115478,32788.0,32787.0,0.0036077]
[1625771184531,8.71116456,32788.0,32787.0,0.0036077]
[1625771184757,10.31863331,32788.0,32787.0,0.0036077]
[1625771188765,10.41093331,32788.0,32787.0,0.0036077]
[1625771188885,10.41093331,32788.0,32780.0,0.09880059]
[1625771189034,10.41093331,32788.0,32778.0,0.71824079]
[1625771189035,12.19288127,32788.0,32778.0,0.27836942]
[1625771189185,3.74047415,32779.0,32778.0,0.00902067]
[1625771189337,4.78598174,32779.0,32778.0,0.00902067]
[1625771189486,5.50770806,32779.0,32778.0,0.00902067]
[1625771189637,5.50770806,32779.0,32777.0,0.00360857]
[1625771189786,5.50770806,32779.0,32778.0,0.00360861]
[1625771190085,5.50770806,32779.0,32775.0,0.00360854]
[1625771190237,3.8218,32776.0,32775.0,0.00360854]
[1625771190386,3.8218,32776.0,32774.0,0.26923954]
[1625771190536,6.84661114,32776.0,32774.0,0.26923954]
[1625771190685,6.84661114,32776.0,32775.0,0.00360861]
[1625771190835,5.06726861,32776.0,32775.0,0.00360861]
[1625771191139,6.84677113,32776.0,32775.0,0.09336727]
[1625771191511,7.08734657,32776.0,32775.0,0.09336727]
[1625771191662,7.08734657,32776.0,32775.0,0.00360861]
[1625771191663,7.62085073,32776.0,32775.0,0.00360861]
[1625771193314,7.62085073,32776.0,32775.0,0.09331913]
[1625771193463,7.62085073,32776.0,32775.0,0.27274017]
[1625771193464,6.37538212,32776.0,32775.0,0.27274017]
[1625771193615,5.30771619,32776.0,32775.0,0.27274017]
[1625771193913,5.30771619,32776.0,32775.0,0.18302965]
[1625771194064,5.30771619,32776.0,32775.0,0.54169089]
[1625771194517,5.30771619,32776.0,32775.0,0.18296996]
[1625771194743,5.30771619,32776.0,32775.0,0.54169299]
[1625771195117,5.30771619,32776.0,32775.0,0.18297123]
[1625771195271,5.30771619,32776.0,32775.0,0.54173687]
[1625771195568,5.30771619,32776.0,32775.0,0.18294085]
[1625771196545,5.30771619,32776.0,32775.0,0.27260694]
[1625771196694,5.30771619,32776.0,32775.0,0.18294085]
[1625771196844,5.30771619,32776.0,32775.0,0.18294065]
[1625771197145,5.30771619,32776.0,32775.0,0.54165237]
[1625771197446,5.30771619,32776.0,32775.0,0.18292083]
[1625771197672,4.5958796,32776.0,32775.0,0.54153954]
[1625771198122,6.37354086,32776.0,32775.0,0.09327759]
[1625771198271,6.72174086,32776.0,32775.0,0.09327759]
[1625771198422,5.65517965,32776.0,32775.0,0.27261436]
[1625771198873,6.72179605,32776.0,32775.0,0.09327759]
[1625771199025,5.65517965,32776.0,32775.0,0.27261676]
[1625771199700,5.30697965,32776.0,32775.0,0.27261676]
[1625771199859,4.5958796,32776.0,32775.0,0.27261676]
[1625771200150,4.5958796,32776.0,32775.0,0.54156331]
[1625771200330,0.7740796,32776.0,32775.0,0.54156331]
[1625771200452,0.7740796,32776.0,32775.0,0.87625331]
[1625771200603,0.7740796,32776.0,32775.0,1.59351019]
[1625771200604,0.50715846,32776.0,32775.0,1.59351019]
[1625771200903,0.24057544,32776.0,32775.0,2.66934743]
[1625771201053,0.24057544,32776.0,32775.0,7.87903869]
[1625771201656,0.24057544,32776.0,32775.0,8.11961413]
[1625771202631,0.24057544,32776.0,32775.0,9.55446278]
[1625771204284,0.24057544,32776.0,32775.0,9.55085437]
[1625771204582,0.24057544,32776.0,32775.0,9.55446198]
[1625771210966,0.26749288,32778.0,32775.0,9.55446198]
[1625771211117,0.26738059,32779.0,32775.0,9.55446198]
[1625771211414,0.0892251,32780.0,32778.0,5.02563964]
[1625771211716,0.2675071,32781.0,32779.0,4.07087351]
[1625771211866,0.2675071,32781.0,32780.0,3.58971977]
[1625771212169,0.26758051,32782.0,32780.0,7.44864543]
[1625771212315,0.26758051,32782.0,32781.0,3.58964809]
[1625771212467,0.26758051,32782.0,32781.0,3.60227395]
[1625771212619,0.17832762,32782.0,32781.0,3.60227395]
[1625771213292,0.26758766,32782.0,32781.0,3.60227395]
[1625771213667,0.26758766,32782.0,32781.0,3.60687395]
[1625771214868,0.26758766,32782.0,32781.0,3.60227395]
[1625771216598,0.26777125,32783.0,32781.0,5.03849874]
[1625771216902,0.08931651,32783.0,32782.0,3.59049638]
[1625771217049,0.08931651,32783.0,32782.0,3.89554154]
[1625771217201,0.2678112,32784.0,32782.0,5.33170485]
[1625771217352,0.2678112,32784.0,32783.0,3.59049114]
[1625771217499,0.2678112,32784.0,32783.0,3.60311592]
[1625771217650,0.2678112,32784.0,32783.0,3.84369136]
[1625771221028,0.17847305,32784.0,32783.0,3.84369136]
[1625771221329,0.53629866,32784.0,32783.0,3.84369136]
[1625771222456,2.32297412,32784.0,32783.0,2.58701946]
[1625771229367,3.57375448,32784.0,32783.0,2.58701946]
[1625771233874,3.57375448,32784.0,32783.0,3.84538066]
[1625771234023,3.57375448,32784.0,32783.0,4.08134066]
[1625771234174,2.32297412,32784.0,32783.0,4.08134066]
[1625771235224,2.41557412,32784.0,32783.0,4.08134066]
[1625771236427,2.32297412,32784.0,32783.0,4.08134066]
[1625771237627,3.5716901,32784.0,32783.0,2.82297946]
[1625771237779,3.5716901,32784.0,32783.0,2.58701946]
[1625771240635,3.5716901,32784.0,32783.0,6.79491946]
[1625771241610,4.99810176,32784.0,32783.0,6.79491946]
[1625771241912,4.99810176,32784.0,32783.0,5.71777212]
[1625771242213,4.99810176,32784.0,32783.0,6.79668658]
[1625771242368,3.5716901,32784.0,32783.0,6.79668658]
[1625771242515,3.5716901,32784.0,32783.0,7.11764658]
[1625771244092,4.99849927,32784.0,32783.0,7.11764658]
[1625771244239,4.99849927,32784.0,32783.0,6.79668658]
[1625771244467,3.5716901,32784.0,32783.0,6.79668658]
[1625771245218,4.99832689,32784.0,32783.0,6.79668658]
[1625771246120,5.34460689,32784.0,32783.0,2.58878658]
[1625771246433,5.34460689,32784.0,32783.0,0.55209886]
[1625771246570,6.94787504,32784.0,32783.0,0.01262478]
[1625771246870,6.94787504,32784.0,32783.0,0.00360708]
[1625771247922,7.18845048,32784.0,32782.0,0.00360815]
[1625771248222,6.5857706,32783.0,32781.0,0.00360815]
[1625771248523,6.58458362,32782.0,32780.0,0.62943397]
[1625771248676,4.98282325,32781.0,32780.0,0.62943397]
[1625771248974,4.98282325,32781.0,32780.0,0.63304213]
[1625771249578,4.98282325,32781.0,32780.0,0.27336603]
[1625771249875,4.98282325,32781.0,32780.0,0.09352745]
[1625771249876,5.22339869,32781.0,32780.0,0.09352745]
[1625771250552,5.22339869,32781.0,32780.0,0.27338637]
[1625771251826,5.22339869,32781.0,32780.0,0.63316176]
[1625771255281,5.22339869,32781.0,32780.0,0.54324247]
[1625771255591,5.22339869,32781.0,32780.0,0.55226282]
[1625771256041,5.22339869,32781.0,32780.0,0.89563282]
[1625771256633,5.22339869,32781.0,32780.0,1.2554792]
[1625771257985,5.22339869,32781.0,32780.0,0.89570381]
[1625771259013,5.22339869,32781.0,32780.0,1.61533293]
[1625771259311,5.22339869,32781.0,32780.0,2.6947893]
[1625771259443,3.79981116,32781.0,32780.0,3.95430384]
[1625771259731,2.55414983,32781.0,32780.0,5.39372551]
[1625771259894,2.55414983,32781.0,32780.0,5.63430095]
[1625771262039,2.31357439,32781.0,32780.0,5.63430095]
[1625771263466,2.31357439,32781.0,32780.0,5.63069279]
[1625771263617,2.31357439,32781.0,32780.0,5.63430047]
[1625771263918,2.31357439,32781.0,32780.0,5.87487591]
[1625771264389,1.24583926,32781.0,32780.0,5.87487591]
[1625771264819,0.53395653,32781.0,32780.0,5.87487591]
[1625771265420,1.24789483,32781.0,32780.0,5.87487591]
[1625771265795,0.53395653,32781.0,32780.0,5.87487591]
[1625771267070,1.24771666,32781.0,32780.0,5.87487591]
[1625771267296,0.53395653,32781.0,32780.0,5.87487591]
[1625771268949,1.24758916,32781.0,32780.0,5.87487591]
[1625771269401,0.89103324,32781.0,32780.0,5.87487591]
[1625771270151,0.53568597,32781.0,32780.0,7.49403396]
[1625771270600,0.53568597,32781.0,32780.0,5.87487591]
[1625771270826,0.89246027,32781.0,32780.0,5.87487591]
[1625771271125,0.53538356,32781.0,32780.0,5.87487591]
[1625771272703,0.89238333,32781.0,32780.0,5.87487591]
[1625771272931,0.53538356,32781.0,32780.0,5.87487591]
[1625771273229,0.89237557,32781.0,32780.0,5.87487591]
[1625771273381,0.53559281,32781.0,32780.0,7.49401279]
[1625771275486,0.62497933,32781.0,32780.0,7.49401279]
[1625771275784,0.53559281,32781.0,32780.0,7.49401279]
[1625771276462,0.53559281,32781.0,32780.0,5.87487591]
[1625771276761,0.53559281,32781.0,32780.0,7.49393761]
[1625771276986,0.89227931,32781.0,32780.0,5.87487591]
[1625771277286,0.24057544,32784.0,32780.0,0.83714891]
[1625771277438,0.24057544,32784.0,32783.0,4.659]
[1625771277587,1.48928943,32784.0,32783.0,8.2570688]
[1625771277738,3.80859463,32784.0,32783.0,8.2570688]
[1625771277888,3.80859463,32784.0,32783.0,8.26969548]
[1625771279089,3.80859463,32784.0,32783.0,9.70898557]
[1625771280590,2.55988064,32784.0,32783.0,9.70898557]
[1625771281041,3.80909785,32784.0,32783.0,9.70898557]
[1625771281490,2.55988064,32784.0,32783.0,9.70898557]
[1625771281865,3.80882701,32784.0,32783.0,8.26969548]
[1625771287873,3.80882701,32784.0,32783.0,9.70904304]
[1625771288021,3.56825157,32784.0,32783.0,9.94961848]
[1625771288248,2.3193052,32784.0,32783.0,9.94961848]